Workbook

Sheet 1 неделя
A1: 1 неделя | B1: Выход, гр | C1: Цена, 1 кг | D1: Цена в блюде
A2: Понедельник
A3: Фрукты свежие | B3: 100
A4: Апельсин | B4: 100 | C4: 150 | D4: =C4/1000*B4 -> 15
A5: Салат из моркови с сахаром | B5: 60
A6: Сахар | B6: 3 | C6: 80 | D6: =C6/1000*B6 -> 0.24
A7: Морковь | B7: 72 | C7: 35 | D7: =C7/1000*B7 -> 2.52
A8: Бифштекс рубленный | B8: 80
A9: Говядина (котлетное мясо) | B9: 105 | C9: 440 | D9: 46.2
A10: Молоко | B10: 5 | C10: 65 | D10: 0.325
A11: Соль | B11: 1 | C11: 16 | D11: 0.016
A12: Масло растительное | B12: 5 | C12: 140 | D12: 0.7
A13: Каша вязска гречневая | B13: 150
A14: Гречка | B14: 71 | C14: 100 | D14: 7.1
A15: Масло сливочное | B15: 5 | C15: 625 | D15: 3.125
A16: Соль | B16: 1 | C16: 16 | D16: 0.016
A17: Чай с молоком | B17: 150/50/15
A18: Чай | B18: 1 | C18: 688 | D18: 0.688
A19: Сахар | B19: 15 | C19: 80 | D19: 1.2
A20: Молоко | B20: 51 | C20: 65 | D20: 3.315
A21: Хлеб пшеничный | B21: 30 | C21: 60 | D21: 1.8
A22: Хлеб ржано-пшеничный | B22: 20 | C22: 51 | D22: 1.02
A23: Стоимость понедельник | D23: =SUM(D4:D22) -> 83.265
A24: Вторник
A25: Фркты | B25: 100
A26: Груша | B26: 100 | C26: 280 | D26: =C26/1000*B26 -> 28
A27: Салат из белокочанной капусты | B27: 60
A28: Капуста | B28: 59 | C28: 25 | D28: =C28/1000*B28 -> 1.475
A29: Морковь | B29: 6 | C29: 35 | D29: =C29/1000*B29 -> 0.21
A30: Сахар | B30: 3 | C30: 80 | D30: 0.24
A31: Масло растительное | B31: 3 | C31: 140 | D31: 0.42
A32: Рагу из птицы | B32: 200
A33: Грудка куриная | B33: 104 | C33: 270 | D33: 28.08
A34: Масло ратистельное | B34: 2 | C34: 140 | D34: 0.28
A35: Картофель | B35: 128 | C35: 25 | D35: 3.2
A36: Морковь | B36: 25 | C36: 35 | D36: 0.875
A37: Томат паста | B37: 7 | C37: 175 | D37: 1.225
A38: Лук репчатый | B38: 14 | C38: 30 | D38: 0.42
A39: Масло растительное | B39: 5 | C39: 140 | D39: 0.7
A40: Мука пшеничная | B40: 1 | C40: 40 | D40: 0.04
A41: Соль | B41: 1 | C41: 16 | D41: 0.016
A42: Какао с молоком | B42: 200
A43: Какао-порошок | B43: 4 | C43: 271 | D43: 1.084
A44: Молоко | B44: 100 | C44: 65 | D44: 6.5
A45: Сахар | B45: 20 | C45: 80 | D45: 1.6
A46: Хлеб пшеничный | B46: 30 | C46: 60 | D46: 1.8
A47: Хлеб ржано-пшеничный | B47: 20 | C47: 51 | D47: 1.02
A48: Стоимость вторник | D48: =SUM(D26:D47) -> 77.185
A49: Среда
A50: Фрукты свежие | B50: 100
A51: Яблоко | B51: 100 | C51: 100 | D51: =C51/1000*B51 -> 10
A52: Салат из зеленого горошка | B52: 55
A53: Зеленый горошек | B53: 100 | C53: 75 | D53: =C53/1000*B53 -> 7.5
A54: Лук репчатый | B54: 5 | C54: 30 | D54: =C54/1000*B54 -> 0.15
A55: Масло растительное | B55: 2 | C55: 140 | D55: =C55/1000*B55 -> 0.28
A56: Мясо тушеное | B56: 50/50
A57: Говядина (котлетное мясо) | B57: 83 | C57: 440 | D57: 36.52
A58: Морковь | B58: 5 | C58: 35 | D58: 0.175
A59: Лук репчатый | B59: 5 | C59: 30 | D59: 0.15
A60: Масло растительное | B60: 5 | C60: 140 | D60: 0.7
A61: Томат паста | B61: 7 | C61: 175 | D61: 1.225
A62: Мука пшеничная | B62: 2 | C62: 40 | D62: 0.08
A63: Соль | B63: 1 | C63: 16 | D63: 0.016
A64: Макаронные изделия отварные с маслом | B64: 150/5
A65: Макаронные изделия | B65: 53 | C65: 50 | D65: 2.65
A66: Масло сливочное | B66: 5 | C66: 550 | D66: 2.75
A67: Соль | B67: 2 | C67: 16 | D67: 0.032
A68: Чай с лимоном | B68: 200/15/7
A69: Чай | B69: 1 | C69: 688 | D69: 0.688
A70: Сахар | B70: 15 | C70: 80 | D70: 1.2
A71: Лимон | B71: 8 | C71: 170 | D71: 1.36
A72: Хлеб пшеничный | B72: 30 | C72: 60 | D72: 1.8
A73: Хлеб ржано-пшеничный | B73: 20 | C73: 51 | D73: 1.02
A74: Стоимость среда | D74: =SUM(D51:D73) -> 68.296
A75: Четверг
A76: Салат овощной с яблоками | B76: 60
A77: Свекла | B77: 13 | C77: 20 | D77: =C77/1000*B77 -> 0.26
A78: Морковь | B78: 10 | C78: 35 | D78: =C78/1000*B78 -> 0.35
A79: Капуста белокочанная | B79: 23 | C79: 25 | D79: 0.575
A80: Яблоки | B80: 28 | C80: 100 | D80: 2.8
A81: Лимон (для сока) | B81: 12 | C81: 170 | D81: 2.04
A82: Котлеты рубленные из бройлер-цыплят | B82: 80
A83: Грудка куриная | B83: 136 | C83: 270 | D83: 36.72
A84: Хлеб пшеничный | B84: 13 | C84: 60 | D84: 0.78
A85: Молоко | B85: 19 | C85: 62 | D85: 1.178
A86: Сухари | B86: 5 | C86: 100 | D86: 0.5
A87: Масло ратистельное | B87: 3 | C87: 140 | D87: 0.42
A88: Масло сливочное | B88: 5 | C88: 625 | D88: 3.125
A89: Соль | B89: 1 | C89: 16 | D89: 0.016
A90: Пюре картофельное | B90: 150
A91: Картофель | B91: 197 | C91: 25 | D91: 4.925
A92: Молоко | B92: 24 | C92: 62 | D92: 1.488
A93: Масло сливочное | B93: 5 | C93: 625 | D93: 3.125
A94: Соль | B94: 1 | C94: 16 | D94: 0.016
A95: Чай с сахаром | B95: 200/15
A96: Чай | B96: 1 | C96: 688 | D96: 0.688
A97: Сахар | B97: 15 | C97: 80 | D97: 1.2
A98: Хлеб пшеничный | B98: 30 | C98: 60 | D98: 1.8
A99: Хлеб ржано-пшеничный | B99: 20 | C99: 51 | D99: 1.02
A100: Стоимость четверг | D100: =SUM(D77:D99) -> 63.026
A101: Пятница
A102: Свежие фрукты | B102: 100
A103: Апельсин | B103: 100 | C103: 150 | D103: =C103/1000*B103 -> 15
A104: Салат из моркови с яблоками | B104: 60
A105: Морковь | B105: 57 | C105: 35 | D105: =C105/1000*B105 -> 1.995
A106: Яблоки свежие | B106: 22 | C106: 100 | D106: =C106/1000*B106 -> 2.2
A107: Сахар | B107: 1 | C107: 80 | D107: 0.08
A108: Котлеты | B108: 80
A109: Говядина (котлетное мясо) | B109: 60 | C109: 440 | D109: 26.4
A110: Хлеб пшенинчый | B110: 9 | C110: 60 | D110: 0.54
A111: Молоко | B111: 12 | C111: 62 | D111: 0.744
A112: Сухари | B112: 5 | C112: 100 | D112: 0.5
A113: Масло растительное | B113: 3 | C113: 140 | D113: 0.42
A114: Масло сливочное | B114: 5 | C114: 625 | D114: 3.125
A115: Соль | B115: 1 | C115: 16 | D115: 0.016
A116: Рис отварной | B116: 150
A117: Рис | B117: 55 | C117: 90 | D117: 4.95
A118: Масло сливочное | B118: 7 | C118: 625 | D118: 4.375
A119: Соль | B119: 1 | C119: 16 | D119: 0.016
A120: Чай с молоком | B120: 150/50/15
A121: Чай | B121: 1 | C121: 688 | D121: 0.688
A122: Сахар | B122: 15 | C122: 80 | D122: 1.2
A123: Молоко | B123: 51 | C123: 65 | D123: 3.315
A124: Хлеб пшеничный | B124: 30 | C124: 60 | D124: 1.8
A125: Хлеб ржано-пшеничный | B125: 20 | C125: 51 | D125: 1.02
A126: Стоимость пятница | D126: =SUM(D103:D125) -> 68.384
A127: Суббота
A128: Плоды и ягода свежие (яблоки) | B128: 100
A129: Яблоки | B129: 100 | C129: 100 | D129: =C129/1000*B129 -> 10
A130: Салат из квашеной капусты | B130: 60
A131: Капуста квашеная | B131: 70 | C131: 180 | D131: =C131/1000*B131 -> 12.6
A132: Лук репчатый | B132: 7 | C132: 30 | D132: 0.21
A133: Сахар | B133: 3 | C133: 80 | D133: 0.24
A134: Масло растительное | B134: 3 | C134: 140 | D134: 0.42
A135: Говядина тушеная | B135: 60/30
A136: Говядина | B136: 83 | C136: 440 | D136: =C136/1000*B136 -> 36.52
A137: Морковь свежая | B137: 5 | C137: 35 | D137: 0.175
A138: Лук | B138: 5 | C138: 30 | D138: 0.15
A139: Масло растительное | B139: 5 | C139: 140 | D139: 0.7
A140: Томатная паста | B140: 7 | C140: 175 | D140: 1.225
A141: Мука пшеничная | B141: 2 | C141: 40 | D141: 0.08
A142: Соль | B142: 1 | C142: 16 | D142: 0.016
A143: Макаронные изделия отварные | B143: 150
A144: Макаронные изделия | B144: 53 | C144: 50 | D144: =C144/1000*B144 -> 2.65
A145: Масло сливочное | B145: 5 | C145: 625 | D145: 3.125
A146: Соль | B146: 1 | C146: 16 | D146: 0.016
A147: Кофейный напиток с молоком | B147: 200
A148: Кофейный напиток | B148: 5 | C148: 500 | D148: 2.5
A149: Сахар | B149: 20 | C149: 80 | D149: 1.6
A150: Молоко | B150: 100 | C150: 65 | D150: 6.5
A151: Хлеб пшеничный | B151: 30 | C151: 60 | D151: 1.8
A152: Хлеб ржано-пшеничный | B152: 20 | C152: 51 | D152: 1.02
A153: Стоимость суббота | D153: =SUM(D129:D152) -> 81.547

Sheet 2 неделя
A1: 2 неделя | B1: Выход, гр | C1: Цена, 1 кг | D1: Цена в блюде
A2: Понедельник
A3: Фрукты свежие | B3: 100
A4: Апельсин | B4: 100 | C4: 150 | D4: =C4/1000*B4 -> 15
A5: Салат из белокочанной капусты | B5: 60
A6: Капуста | B6: 59 | C6: 25 | D6: =C6/1000*B6 -> 1.475
A7: Морковь | B7: 6 | C7: 35 | D7: 0.21
A8: Сахар | B8: 3 | C8: 80 | D8: 0.24
A9: Масло растительное | B9: 3 | C9: 140 | D9: 0.42
A10: Фрикадельки в соусе | B10: 55/50
A11: Говядина (котлетное мясо) | B11: 38 | C11: 440 | D11: 16.72
A12: Хлеб пшеничный | B12: 8 | C12: 60 | D12: 0.48
A13: Молоко | B13: 11 | C13: 65 | D13: 0.715
A14: Лук репчатый | B14: 5 | C14: 30 | D14: 0.15
A15: Мука пшеничная | B15: 5 | C15: 40 | D15: 0.2
A16: Масло растительное | B16: 5 | C16: 140 | D16: 0.7
A17: Сметана | B17: 12.5 | C17: 190 | D17: 2.375
A18: Мука пшеничная | B18: 4 | C18: 40 | D18: 0.16
A19: Соль | B19: 1 | C19: 16 | D19: 0.016
A20: Каша рассыпчатая (гречневая) | B20: 150
A21: Гречка | B21: 71 | C21: 100 | D21: 7.1
A22: Соль | B22: 1 | C22: 16 | D22: 0.016
A23: Чай с сахаром | B23: 200/15
A24: Чай | B24: 1 | C24: 688 | D24: 0.688
A25: Сахар | B25: 15 | C25: 80 | D25: 1.2
A26: Хлеб пшеничный | B26: 30 | C26: 60 | D26: 1.8
A27: Хлеб ржано-пшеничный | B27: 20 | C27: 51 | D27: 1.02
A28: Стоимость понедельник | D28: =SUM(D4:D27) -> 50.685
A29: Вторник
A30: Сок натуральный | B30: 150
A31: Сок натуральный | B31: 150 | C31: 80 | D31: =C31/1000*B31 -> 12
A32: Салат из свеклы отварной | B32: 60
A33: Свекла | B33: 73 | C33: 20 | D33: =C33/1000*B33 -> 1.46
A34: Масло растительное | B34: 3 | C34: 140 | D34: =C34/1000*B34 -> 0.42
A35: Плов из птицы | B35: 50/150
A36: Грудка куриная | B36: 96 | C36: 270 | D36: 25.92
A37: Масло растительное | B37: 7 | C37: 140 | D37: 0.98
A38: Лук репчатый | B38: 8 | C38: 30 | D38: 0.24
A39: Морковь | B39: 15 | C39: 35 | D39: 0.525
A40: Томат паста | B40: 7 | C40: 175 | D40: 1.225
A41: Рис | B41: 52 | C41: 90 | D41: 4.68
A42: Соль | B42: 1 | C42: 16 | D42: 0.016
A43: Чай с лимоном | B43: 200/15/7
A44: Чай | B44: 1 | C44: 688 | D44: 0.688
A45: Сахар | B45: 15 | C45: 80 | D45: 1.2
A46: Лимон | B46: 8 | C46: 170 | D46: 1.36
A47: Хлеб пшеничный | B47: 30 | C47: 60 | D47: 1.8
A48: Хлеб ржано-пшеничный | B48: 20 | C48: 51 | D48: 1.02
A49: Стоимость вторник | D49: =SUM(D31:D48) -> 53.534
A50: Среда
A51: Салат из квашеной капусты | B51: 60
A52: Капуста квашеная | B52: 70 | C52: 180 | D52: =C52/1000*B52 -> 12.6
A53: Лук репчатый | B53: 7 | C53: 30 | D53: =C53/1000*B53 -> 0.21
A54: Сахар | B54: 3 | C54: 80 | D54: 0.24
A55: Масло растительное | B55: 3 | C55: 140 | D55: 0.42
A56: Биточки рыбные | B56: 80
A57: Филе минтая | B57: 112 | C57: 325 | D57: 36.4
A58: Яйцо 1 кат., шт | B58: 0.2 | C58: 0 | D58: 0
A59: Сухари панировочные | B59: 7 | C59: 0 | D59: 0
A60: Молоко | B60: 13 | C60: 0 | D60: 0
A61: Лук репчатый очищенный | B61: 3 | C61: 0 | D61: 0
A62: Соль | B62: 1 | C62: 0 | D62: 0
A63: Масло растительное | B63: 2 | C63: 0 | D63: 0
A64: Пюре картофельное | B64: 150
A65: Картофель | B65: 197 | C65: 25 | D65: 4.925
A66: Молоко | B66: 24 | C66: 65 | D66: 1.56
A67: Масло сливочное | B67: 5 | C67: 625 | D67: 3.125
A68: Соль | B68: 1 | C68: 16 | D68: 0.016
A69: Кофейный напиток с молоком | B69: 200
A70: Кофейный напиток | B70: 5 | C70: 500 | D70: 2.5
A71: Сахар | B71: 20 | C71: 80 | D71: 1.6
A72: Молоко | B72: 100 | C72: 65 | D72: 6.5
A73: Хлеб пшеничный | B73: 30 | C73: 60 | D73: 1.8
A74: Хлеб ржано-пшеничный | B74: 20 | C74: 51 | D74: 1.02
A75: Стоимость среда | D75: =SUM(D52:D74) -> 72.916
A76: Четверг
A77: Фрукты свежие | B77: 100
A78: Апельсин | B78: 100 | C78: 150 | D78: =C78/1000*B78 -> 15
A79: Салат из моркови с сахаром | B79: 60
A80: Сахар | B80: 3 | C80: 80 | D80: =C80/1000*B80 -> 0.24
A81: Морковь | B81: 72 | C81: 35 | D81: =C81/1000*B81 -> 2.52
A82: Котлеты рубленные из птицы | B82: 90
A83: Грудка куриная | B83: 77 | C83: 270 | D83: =C83/1000*B83 -> 20.79
A84: Хлеб пшеничный | B84: 14 | C84: 60 | D84: 0.84
A85: Молоко | B85: 19 | C85: 65 | D85: 1.235
A86: Сухари панировочные | B86: 8 | C86: 100 | D86: 0.8
A87: Масло растительное | B87: 5 | C87: 140 | D87: 0.7
A88: Масло сливочное | B88: 2 | C88: 625 | D88: 1.25
A89: Соль | B89: 1 | C89: 16 | D89: 0.016
A90: Макаронные изделия отварные с маслом | B90: 150/5
A91: Макаронные изделия | B91: 53 | C91: 50 | D91: 2.65
A92: Масло сливочное | B92: 5 | C92: 625 | D92: 3.125
A93: Соль | B93: 1 | C93: 16 | D93: 0.016
A94: Какао с молоком | B94: 200
A95: Какао-порошок | B95: 4 | C95: 271 | D95: 1.084
A96: Молоко | B96: 100 | C96: 65 | D96: 6.5
A97: Сахар | B97: 20 | C97: 80 | D97: 1.6
A98: Хлеб пшеничный | B98: 30 | C98: 60 | D98: 1.8
A99: Хлеб ржано-пшеничный | B99: 20 | C99: 51 | D99: 1.02
A100: Стоимость четверг | D100: =SUM(D78:D99) -> 61.186
A101: Пятница
A102: Фрукты свежие | B102: 100
A103: Груша | B103: 100 | C103: 280 | D103: =C103/1000*B103 -> 28
A104: Салат из свеклы отварной | B104: 60
A105: Свекла | B105: 73 | C105: 20 | D105: =C105/1000*B105 -> 1.46
A106: Масло растительное | B106: 3 | C106: 140 | D106: =C106/1000*B106 -> 0.42
A107: Птица тушеная в соусе | B107: 50/50
A108: Грудка куриная | B108: 99 | C108: 270 | D108: 26.73
A109: Масло растительное | B109: 2 | C109: 140 | D109: 0.28
A110: Сметана | B110: 12.5 | C110: 190 | D110: 2.375
A111: Мука пшеничная | B111: 4 | C111: 40 | D111: 0.16
A112: Соль | B112: 1 | C112: 16 | D112: 0.016
A113: Рис отварной | B113: 150
A114: Рис | B114: 55 | C114: 90 | D114: 4.95
A115: Масло сливочное | B115: 7 | C115: 625 | D115: 4.375
A116: Чай с сахаром | B116: 200/15
A117: Чай | B117: 1 | C117: 688 | D117: 0.688
A118: Сахар | B118: 15 | C118: 80 | D118: 1.2
A119: Хлеб пшеничный | B119: 30 | C119: 60 | D119: 1.8
A120: Хлеб ржано-пшеничный | B120: 20 | C120: 51 | D120: 1.02
A121: Стоимость пятница | D121: =SUM(D103:D120) -> 73.474
A122: Суббота
A123: Плоды и ягода свежие (яблоки) | B123: 100
A124: Яблоки | B124: 100 | C124: 100 | D124: =C124/1000*B124 -> 10
A125: Салат овощной с яблоками | B125: 60
A126: Свекла | B126: 13 | C126: 20 | D126: =C126/1000*B126 -> 0.26
A127: Морковь | B127: 10 | C127: 35 | D127: 0.35
A128: Капуста белокочанная | B128: 23 | C128: 25 | D128: 0.575
A129: Яблоки | B129: 28 | C129: 100 | D129: 2.8
A130: Лимон (для сока) | B130: 12 | C130: 170 | D130: 2.04
A131: Плов из птицы | B131: 50/150
A132: Грудка куриная | B132: 96 | C132: 270 | D132: =C132/1000*B132 -> 25.92
A133: Масло растительное | B133: 7 | C133: 140 | D133: 0.98
A134: Лук репчатый | B134: 8 | C134: 30 | D134: 0.24
A135: Морковь | B135: 15 | C135: 35 | D135: 0.525
A136: Томат паста | B136: 7 | C136: 175 | D136: 1.225
A137: Рис | B137: 52 | C137: 90 | D137: 4.68
A138: Соль | B138: 1 | C138: 16 | D138: 0.016
A139: Какао с молоком | B139: 200
A140: Какао-порошок | B140: 4 | C140: 271 | D140: =C140/1000*B140 -> 1.084
A141: Молоко | B141: 100 | C141: 65 | D141: 6.5
A142: Сахар | B142: 20 | C142: 80 | D142: 1.6
A143: Хлеб пшеничный | B143: 30 | C143: 60 | D143: 1.8
A144: Хлеб ржано-пшеничный | B144: 20 | C144: 51 | D144: 1.02
A145: Стоимость суббота | D145: =SUM(D124:D144) -> 61.615
A146: Итого за 2 недели | D146: ='1 неделя'!D23+'1 неделя'!D48+'1 неделя'!D74+'1 неделя'!D100+'1 неделя'!D126+'1 неделя'!D153+'2 неделя'!D28+'2 неделя'!D49+'2 неделя'!D75+'2 неделя'!D100+'2 неделя'!D121+'2 неделя'!D145 -> 815.113 | F146: 801.12 | G146: контрольная цифра за 2 недели при стоимости 66,76 за 1 детодень

Sheet Лист2
